bitfinex/quotes_ETHUSD_20250906
["timestamp","ask_amount","ask_price","bid_price","bid_amount"]
[1757181162261,19.06522849,4279.9,4279.8,0.029]
[1757181162977,19.06002849,4279.9,4279.8,0.029]
[1757181163548,18.77432849,4279.9,4279.8,0.029]
[1757181164662,18.77432849,4279.9,4279.8,0.3331]
[1757181165242,18.7742308,4279.9,4279.8,0.3331]
[1757181170043,14.8462308,4279.9,4279.8,0.3331]
[1757181170338,17.58903543,4279.9,4279.8,0.029]
[1757181170546,18.55413543,4279.9,4279.8,0.029]
[1757181173566,18.92069651,4279.9,4279.8,0.029]
[1757181173948,21.18860448,4279.9,4279.8,0.029]
[1757181180666,12.8823013,4279.9,4279.8,0.3331]
[1757181180842,14.54139333,4279.9,4279.8,0.029]
[1757181181048,17.95559651,4279.9,4279.8,0.029]
[1757181181371,18.92069651,4279.9,4279.8,0.029]
[1757181182773,17.95559651,4279.9,4279.8,0.029]
[1757181184050,18.92069651,4279.9,4279.8,0.029]
[1757181184283,21.05587892,4279.9,4279.8,0.029]
[1757181186611,21.36108676,4279.9,4279.8,0.029]
[1757181186772,21.36108676,4279.9,4279.3,0.004]
[1757181186773,12.59290141,4279.4,4279.3,0.004]
[1757181186980,18.8399415,4279.4,4279.3,1e-08]
[1757181187291,6.1292131,4278.6,4278.5,1e-08]
[1757181187476,18.53517058,4278.6,4278.5,1e-08]
[1757181187674,18.82087058,4278.6,4278.5,1e-08]
[1757181187888,19.78597058,4278.6,4278.5,1e-08]
[1757181188582,19.87972017,4278.6,4278.5,1e-08]
[1757181188781,22.10140257,4278.6,4278.5,1e-08]
[1757181191200,22.46809119,4278.6,4278.5,1e-08]
[1757181191420,3.12959554,4277.9,4277.5,0.9195]
[1757181191590,10.30364773,4277.9,4277.5,0.9195]
[1757181191798,10.27442779,4277.9,4277.8,0.3152]
[1757181193326,11.56714252,4277.9,4277.8,0.3152]
[1757181193625,11.56714252,4277.9,4276.6,0.004]
[1757181193626,5.33765019,4277.8,4276.6,0.004]
[1757181193839,5.33765019,4277.8,4277.1,0.4836]
[1757181193840,3.12986879,4277.4,4277.1,0.4836]
[1757181194060,10.30592439,4277.4,4277.1,0.004]
[1757181194201,10.27670104,4277.4,4277.1,0.004]
[1757181194400,9.48470104,4277.4,4277.3,0.7571]
[1757181194594,9.26686879,4277.4,4277.3,1.2367]
[1757181195710,5.33786879,4277.4,4277.3,1.2367]
[1757181196034,9.26686879,4277.4,4277.3,1.2367]
[1757181196235,3.0,4277.4,4277.3,1.2367]
[1757181196439,3.1168,4277.4,4277.3,1.2367]
[1757181196645,9.38366879,4277.4,4277.3,1.2367]
[1757181196814,9.38266879,4277.4,4277.3,1.2367]
[1757181197601,5.45466879,4277.4,4277.3,1.2367]
[1757181197803,9.38366879,4277.4,4277.3,1.2367]
[1757181201679,7.0458,4277.4,4277.3,1.2367]
[1757181203374,9.38366879,4277.4,4277.3,0.2942]
[1757181203774,9.38366879,4277.4,4277.3,1.2367]
[1757181205137,1.798,4277.7,4277.5,2.3377721]
[1757181205384,1.798,4277.7,4277.6,1.2327]
[1757181205560,5.725,4277.7,4277.6,1.2327]
[1757181205968,1.798,4277.7,4277.6,1.2327]
[1757181206168,1.798,4278.4,4277.6,1.8480262]
[1757181206379,3.927,4278.3,4278.2,2.33743163]
[1757181206559,3.927,4278.3,4278.2,3.57013163]
[1757181208556,3.927,4278.3,4278.2,1.2327]
[1757181208754,1.798,4278.4,4278.2,1.2327]
[1757181208974,1.798,4278.4,4278.2,2.62763163]
[1757181208975,3.927,4278.3,4278.2,2.62763163]
[1757181209474,3.927,4278.3,4278.2,2.74443163]
[1757181209669,3.927,4278.3,4278.2,3.68693163]
[1757181211175,0.001,4278.6,4278.4,2.33727714]
[1757181211377,3.927,4278.5,4278.4,2.33727714]
[1757181211603,0.001,4278.6,4278.4,3.56997714]
[1757181211772,0.001,4278.6,4278.5,2.33726773]
[1757181211971,0.001,4278.6,4278.5,3.27976773]
[1757181212205,3.928,4278.6,4278.5,1.2327]
[1757181213272,3.928,4278.6,4278.5,3.56996773]
[1757181218227,3.928,4278.6,4278.5,3.09036773]
[1757181218731,3.928,4278.6,4278.5,2.62746773]
[1757181219824,4.2197,4278.6,4278.4,2.33730934]
[1757181220531,3.928,4278.6,4278.4,2.33730934]
[1757181222139,3.928,4278.6,4278.5,2.64266773]
[1757181224760,3.928,4278.6,4278.5,3.11746773]
[1757181225664,3.928,4278.6,4278.5,2.64266773]
[1757181226957,3.928,4278.6,4278.5,3.11746773]
[1757181227426,0.001,4278.6,4278.5,2.64266773]
[1757181227626,3.927,4278.6,4278.5,3.11746773]
[1757181228332,0.001,4278.6,4278.5,4.25723122]
[1757181229779,0.001,4278.6,4278.5,3.79143122]
[1757181230086,0.001,4278.6,4278.5,4.25723122]
[1757181232662,0.001,4278.6,4278.5,3.79143122]
[1757181233349,0.001,4278.6,4278.5,3.31663122]
[1757181235282,0.001,4278.6,4278.5,3.79143122]
[1757181235890,1.2425,4278.6,4278.5,2.45406773]
[1757181237665,0.7818,4278.6,4278.5,2.45406773]
[1757181237989,1.2425,4278.6,4278.5,2.45406773]
[1757181239985,0.3061,4278.6,4278.5,2.45406773]
[1757181244305,0.001,4278.6,4278.5,2.45406773]
[1757181245606,0.001,4278.6,4278.5,2.75946773]
[1757181249806,0.001,4278.6,4278.5,3.22076773]
[1757181252604,0.001,4278.6,4278.5,2.75946773]
[1757181253390,0.001,4278.6,4278.5,2.45406773]
[1757181255087,0.001,4278.6,4278.5,2.76406773]
[1757181256578,0.001,4278.6,4278.5,2.76149473]
[1757181259907,0.001,4278.6,4278.5,3.22279473]
[1757181261444,0.001,4278.6,4278.5,2.76149473]
[1757181262737,0.001,4278.6,4278.5,3.21509473]
[1757181262932,0.001,4278.6,4278.5,3.67639473]
[1757181263696,0.001,4278.6,4278.5,8.20554257]
[1757181270472,0.2906,4278.6,4278.5,6.98064257]
[1757181270676,0.2906,4278.6,4278.5,6.37806773]
[1757181271677,0.2906,4278.6,4278.5,2.45406773]
[1757181271970,1.1896,4278.6,4278.5,2.45406773]
[1757181274582,1.1896,4278.6,4278.5,2.45806773]
[1757181279451,0.744,4278.6,4278.5,2.45806773]
[1757181279657,0.2906,4278.6,4278.5,2.45806773]
[1757181282297,0.001,4278.6,4278.5,2.76786773]
[1757181282596,0.001,4278.6,4278.5,2.45806773]
[1757181282897,0.001,4278.6,4278.5,2.76786773]
[1757181284096,0.2889,4278.6,4278.5,2.45806773]
[1757181284280,0.7346,4278.6,4278.5,2.45806773]
[1757181284474,1.2338,4278.6,4278.5,2.45806773]
[1757181284674,0.7881,4278.6,4278.5,2.45806773]
[1757181284870,0.2889,4278.6,4278.5,2.45806773]
[1757181286777,0.001,4278.6,4278.5,2.45806773]
[1757181288490,0.001,4278.6,4278.5,2.76786773]
[1757181288690,0.001,4278.6,4278.5,2.45806773]
[1757181289281,0.2889,4278.6,4278.5,2.45806773]
[1757181291516,0.001,4278.6,4278.5,2.45806773]
[1757181291884,0.001,4278.6,4278.5,6.37906773]
[1757181292707,0.001,4278.6,4278.5,6.68886773]
[1757181295216,0.001,4278.6,4278.5,7.18806773]
[1757181297844,0.2889,4278.6,4278.5,6.87826773]
[1757181298025,1.2338,4278.6,4278.5,6.87826773]
[1757181299930,1.2338,4278.6,4278.5,2.95726773]
[1757181300223,1.2338,4278.6,4278.5,2.45806773]
[1757181300805,0.001,4278.6,4278.5,2.76786773]
[1757181302496,0.001,4278.6,4278.5,2.77986916]
[1757181302700,0.001,4278.6,4278.5,4.10308984]
[1757181302932,0.001,4278.6,4278.5,4.80585275]
[1757181304560,0.001,4278.6,4278.5,8.26115275]
[1757181305058,0.001,4278.6,4278.5,7.37445275]
[1757181305351,1.2338,4278.6,4278.5,7.08083064]
[1757181305904,1.2338,4278.6,4278.5,3.16083064]
[1757181306248,1.2338,4278.6,4278.5,7.08083064]
[1757181306448,1.2338,4278.6,4278.5,0.1208]
[1757181306793,1.2338,4278.6,4278.5,2.45806773]
[1757181307003,1.2338,4278.6,4278.5,0.1208]
[1757181307404,1.35968,4278.6,4278.5,0.004]
[1757181307903,1.57719947,4278.6,4278.5,0.004]
[1757181308430,0.50641947,4278.6,4278.5,2.34126773]
[1757181308735,1.2338,4278.6,4278.5,0.1208]
[1757181309237,1.2338,4278.6,4278.5,2.45806773]
[1757181309412,1.2338,4278.6,4278.5,0.1208]
[1757181309754,1.2338,4278.6,4278.5,2.45806773]
[1757181309898,0.7881,4278.6,4278.5,2.45806773]
[1757181310252,0.7881,4278.6,4278.5,0.1208]
[1757181310396,1.2483,4278.6,4278.5,0.1208]
[1757181311238,1.37563,4278.6,4278.5,0.1208]
[1757181311456,1.37563,4278.6,4278.5,0.004]
[1757181317543,5.29563,4278.6,4278.5,0.004]
[1757181325472,4.33623,4278.6,4278.5,0.004]
[1757181325986,0.001,4278.6,4278.5,2.64126773]
[1757181326186,0.001,4278.6,4278.5,3.10576773]
[1757181326378,0.001,4278.6,4278.5,3.55616773]
[1757181326578,0.001,4278.6,4278.5,4.25900308]
[1757181326873,0.001,4278.6,4278.5,3.80860308]
[1757181329508,0.001,4278.6,4278.5,3.34410308]
[1757181329674,0.3032,4278.6,4278.5,0.70683535]
[1757181329881,0.3032,4278.6,4278.5,3.04410308]
[1757181332620,0.001,4278.6,4278.5,3.04410308]
[1757181332793,0.3032,4278.6,4278.5,3.04410308]
[1757181333689,0.3032,4278.6,4278.5,2.34126773]
[1757181335898,0.3032,4278.6,4278.5,2.45806773]
[1757181340637,0.001,4278.6,4278.5,2.45806773]
[1757181342673,0.001,4278.6,4278.5,0.004]
[1757181342674,1.72563,4278.6,4278.5,0.004]
[1757181342840,4.8548431,4278.6,4278.5,0.004]
[1757181344333,8.7728431,4278.6,4278.5,0.004]
[1757181345565,6.43563,4278.6,4278.5,0.004]
[1757181345777,8.7728431,4278.6,4278.5,0.004]
[1757181345980,6.43563,4278.6,4278.5,0.004]
[1757181346775,8.7728431,4278.6,4278.5,0.004]
[1757181346965,6.43563,4278.6,4278.5,0.004]
[1757181347532,4.71823,4278.6,4278.5,0.004]
[1757181347733,3.919,4278.6,4278.5,0.3203]
[1757181350179,3.919,4278.6,4278.5,0.004]
[1757181350382,4.228,4278.6,4278.5,0.004]
[1757181351201,5.1534,4278.6,4278.5,0.004]
[1757181352189,5.91663167,4278.6,4278.5,0.004]
[1757181352682,6.17443177,4278.6,4278.5,0.004]
[1757181353248,5.73883177,4278.6,4278.5,0.004]
[1757181353479,6.17443177,4278.6,4278.5,0.004]
[1757181354091,5.24903177,4278.6,4278.5,0.004]
[1757181356089,4.94003177,4278.6,4278.5,0.004]
[1757181356289,4.1768001,4278.6,4278.5,0.7523]
[1757181357099,4.1768001,4278.6,4278.5,0.3203]
[1757181357502,5.4112001,4278.6,4278.5,0.004]
[1757181358072,4.4858001,4278.6,4278.5,0.004]
[1757181358271,4.1768001,4278.6,4278.5,0.3203]
[1757181358816,4.1768001,4278.6,4278.5,0.004]
[1757181359090,4.1768001,4278.6,4278.5,0.3203]
[1757181360556,4.1768001,4278.6,4278.5,0.004]
[1757181361580,4.4858001,4278.6,4278.5,0.004]
[1757181361781,5.22582631,4278.6,4278.5,0.004]
[1757181361983,6.15122631,4278.6,4278.5,0.004]
[1757181363295,4.1758001,4278.6,4278.5,2.65756773]
[1757181363603,4.1758001,4278.6,4278.5,3.53986773]
[1757181364108,4.1758001,4278.6,4278.5,0.3203]
[1757181364601,4.1758001,4278.6,4278.5,3.53986773]
[1757181364969,0.2588001,4278.6,4278.5,3.53986773]
[1757181365387,4.1748001,4278.6,4278.5,3.08956773]
[1757181366322,0.2588001,4278.6,4278.5,3.08956773]
[1757181366631,4.1748001,4278.6,4278.5,3.08956773]
[1757181367685,4.1748001,4278.6,4278.5,3.53986773]
[1757181369232,4.1748001,4278.6,4278.5,3.08956773]
[1757181370080,4.1748001,4278.6,4278.5,0.3203]
[1757181370817,4.1748001,4278.6,4278.5,0.004]
[1757181371205,0.2588001,4278.6,4278.5,3.11476773]
[1757181371411,4.1748001,4278.6,4278.5,3.72033181]
[1757181373228,4.1748001,4278.6,4278.5,3.25023181]
[1757181373381,0.2588001,4278.6,4278.5,4.20703181]
[1757181373733,0.2588001,4278.6,4278.5,3.72033181]
[1757181374132,0.2588001,4278.6,4278.5,3.25023181]
[1757181377417,0.2588001,4278.6,4278.5,3.72033181]
[1757181379428,0.2588001,4278.6,4278.5,3.25023181]
[1757181380727,0.2588001,4278.6,4278.5,2.64466773]
[1757181385259,0.5499001,4278.6,4278.5,2.34126773]
[1757181385465,0.2588001,4278.6,4278.5,2.34126773]
[1757181386224,0.5499001,4278.6,4278.5,2.34126773]
[1757181388459,0.2588001,4278.6,4278.5,2.64466773]
[1757181388761,0.2588001,4278.6,4278.5,3.74360106]
[1757181390178,0.2588001,4278.6,4278.5,3.27350106]
[1757181392259,0.2588001,4278.6,4278.5,3.74360106]
[1757181393356,0.2588001,4278.6,4278.5,3.27350106]
[1757181393581,0.2588001,4278.6,4278.5,2.97010106]
[1757181394299,0.2588001,4278.6,4278.5,3.04406028]
[1757181395776,1.4721001,4278.6,4278.5,3.04406028]
[1757181396373,0.2588001,4278.6,4278.5,3.04406028]
[1757181400530,0.2588001,4278.6,4278.5,3.33916028]
[1757181400746,0.2588001,4278.6,4278.5,3.79646028]
[1757181401295,0.2588001,4278.6,4278.5,4.47019361]
[1757181402013,0.2588001,4278.6,4278.5,4.01289361]
[1757181402336,0.2588001,4278.6,4278.5,8.98669361]
[1757181402647,0.025,4278.8,4278.7,11.80082459]
[1757181402648,1e-08,4278.8,4278.7,11.80082459]
[1757181402844,1e-08,4278.8,4278.7,17.79257641]
[1757181403138,1e-08,4278.8,4278.7,19.03167641]
[1757181403327,1e-08,4278.8,4278.7,19.24215334]
[1757181404551,1e-08,4278.8,4278.7,20.03415334]
[1757181404754,1e-08,4279.8,4279.7,11.80027848]
[1757181404953,1e-08,4279.8,4279.7,17.24277538]
[1757181405132,1e-08,4279.8,4279.7,18.48187538]
[1757181405755,1e-08,4279.8,4279.7,18.79451877]
[1757181406056,1e-08,4279.8,4279.7,7.47485266]
[1757181406228,1e-08,4279.8,4279.7,11.38685266]
[1757181407054,1e-08,4279.8,4279.7,7.47485266]
[1757181407261,1e-08,4279.8,4279.7,11.38685266]
[1757181410252,0.30760001,4279.8,4279.7,11.09175266]
[1757181410478,0.74140001,4279.8,4279.7,11.09175266]
[1757181410662,0.30760001,4279.8,4279.7,11.09175266]
[1757181411546,0.30760001,4279.8,4279.7,4.17975266]
[1757181411748,0.78790001,4279.8,4279.7,6.67705576]
[1757181411959,1.22170001,4279.8,4279.7,6.67705576]
[1757181412657,1.22170001,4279.8,4279.7,2.76605576]
[1757181420517,0.78790001,4279.8,4279.7,2.45341237]
[1757181420724,1.22170001,4279.8,4279.7,2.45341237]
[1757181422215,1e-08,4279.8,4279.7,2.45341237]
[1757181422619,1e-08,4279.8,4279.7,2.74851237]
[1757181423694,1.22170001,4279.8,4279.7,2.45341237]
[1757181424784,3.14097001,4279.8,4278.5,0.004]
[1757181424983,0.14600765,4279.7,4279.0,0.1168]
[1757181425183,0.3076,4279.1,4279.0,0.1168]
[1757181425515,1.2217,4279.1,4279.0,0.1168]
[1757181425916,1.2217,4279.1,4279.0,2.45379462]
[1757181426592,1.2217,4279.1,4279.0,0.1168]
[1757181426792,1.2217,4279.1,4278.7,2.33715658]
[1757181426999,0.3076,4279.1,4279.0,2.33699462]
[1757181427533,1.2217,4279.1,4279.0,2.33699462]
[1757181427701,1.2217,4279.1,4278.8,0.1168]
[1757181428078,1.2217,4279.1,4278.9,2.33700939]
[1757181428282,0.9141,4279.0,4278.9,2.33700939]
[1757181428483,1.2217,4279.0,4278.9,2.33700939]
[1757181429283,1.2217,4279.0,4278.8,0.1168]
[1757181429684,0.9141,4278.9,4278.8,0.1168]
[1757181430093,1.1998,4278.9,4278.8,0.1168]
[1757181430293,5.1098,4278.9,4278.6,0.004]
[1757181430497,0.9095,4278.8,4278.7,2.33713716]
[1757181430887,0.7671,4278.8,4278.6,0.004]
[1757181431089,0.2857,4278.8,4278.7,2.33715848]
[1757181434756,3.91,4278.9,4278.6,0.004]
[1757181435155,3.91,4278.9,4278.7,2.33715848]
[1757181436054,0.2857,4278.8,4278.7,2.33715848]
[1757181438740,0.7138,4278.8,4278.7,2.33715848]
[1757181439261,1.1952,4278.8,4278.6,2.34120915]
[1757181441267,1.1952,4278.8,4278.6,0.004]
[1757181441446,0.7138,4278.8,4278.6,0.004]
[1757181441645,0.4814,4278.7,4278.6,0.004]
[1757181442147,0.7671,4278.7,4278.6,0.004]
[1757181442534,0.2857,4278.7,4278.6,2.3412131]
[1757181444760,3.91,4278.9,4278.6,0.004]
[1757181445075,3.91,4278.9,4278.6,2.34119414]
[1757181446080,4.8195,4278.9,4278.6,2.34119414]
[1757181446370,4.8195,4278.9,4278.7,2.33715458]
[1757181446668,3.91,4278.9,4278.6,0.004]
[1757181446830,4.3381,4278.9,4278.6,0.004]
[1757181447033,4.8195,4278.9,4278.6,2.34121147]
[1757181447249,3.91,4278.9,4278.7,2.33715651]
[1757181447784,1.797,4279.0,4278.8,2.65079141]
[1757181447992,3.909,4278.9,4278.8,2.65079141]
[1757181448982,3.909,4278.9,4278.8,0.3137]
[1757181449168,3.909,4278.9,4278.7,2.3371474]
[1757181449368,3.909,4278.9,4278.6,0.004]
[1757181449566,3.909,4278.9,4278.7,2.33711356]
[1757181450604,3.909,4278.9,4278.6,0.004]
[1757181450911,3.909,4278.9,4278.7,2.33715848]
[1757181451363,3.909,4278.9,4278.8,2.33710386]
[1757181456860,1.797,4279.0,4278.8,2.65080386]
[1757181457059,1.797,4279.0,4278.9,2.33704924]
[1757181457265,1.798,4279.7,4278.9,0.9988]
[1757181457499,1.798,4279.7,4279.6,2.76716697]
[1757181457661,0.00100001,4279.8,4279.7,2.33661237]
[1757181457862,0.00100001,4279.8,4279.7,2.77749741]
[1757181458062,0.00100001,4279.8,4279.7,4.3777479]
[1757181458490,0.00100001,4279.8,4279.7,11.4035479]
[1757181458704,0.00100001,4279.8,4279.7,11.39156286]
[1757181465639,0.00100001,4279.8,4279.7,10.50956286]
[1757181465911,0.00100001,4279.8,4279.7,10.19486286]
[1757181466409,0.00100001,4279.8,4279.7,10.48026286]
[1757181470117,0.00100001,4279.8,4279.7,6.57226286]
[1757181470320,0.00100001,4279.8,4279.7,10.47926286]
[1757181470624,0.00100001,4279.8,4279.7,10.91936286]
[1757181470813,0.00100001,4279.8,4279.7,11.38726286]
[1757181470983,0.00100001,4279.8,4279.7,10.47926286]
[1757181478952,0.76090001,4279.8,4279.7,6.28686286]
[1757181479245,0.76090001,4279.8,4279.7,10.19286286]
[1757181479246,1.22900001,4279.8,4279.7,10.19286286]
[1757181479439,1.22900001,4279.8,4279.7,7.19286286]
[1757181480444,0.76090001,4279.8,4279.7,7.19286286]
[1757181480611,0.00100001,4279.8,4279.7,3.28686286]
[1757181481152,0.30370001,4279.8,4279.7,3.28686286]
[1757181481346,1.22900001,4279.8,4279.7,3.28686286]
[1757181482204,0.00100001,4279.8,4279.7,3.28686286]
[1757181483524,0.30370001,4279.8,4279.7,3.28686286]
[1757181484526,0.00100001,4279.8,4279.7,3.28686286]
[1757181484945,0.77180001,4279.8,4279.7,3.28686286]
[1757181485145,1.22900001,4279.8,4279.7,2.45341237]
[1757181486018,0.30370001,4279.8,4279.7,2.45341237]
[1757181486515,1.22900001,4279.8,4279.7,2.45341237]
[1757181491279,0.30370001,4279.8,4279.7,2.45341237]
[1757181491778,0.00100001,4279.8,4279.7,2.74371237]
[1757181492242,0.00100001,4279.8,4279.7,2.45341237]
[1757181496944,0.31360001,4279.8,4279.7,2.45341237]
[1757181497289,1.24560001,4279.8,4279.7,2.45341237]
[1757181498888,0.31360001,4279.8,4279.7,2.45341237]
[1757181499089,0.00100001,4279.8,4279.7,2.45341237]
[1757181499293,0.00100001,4279.8,4279.7,2.74371237]
[1757181507671,0.00100001,4279.8,4279.7,2.75569741]
[1757181507870,0.00100001,4279.8,4279.7,3.65583931]
[1757181508066,0.00100001,4279.8,4279.7,4.10893931]
[1757181508323,0.00100001,4279.8,4279.7,4.09695427]
[1757181509716,0.00100001,4279.8,4279.7,4.57835427]
[1757181510116,0.00100001,4279.8,4279.7,4.09695427]
[1757181511842,0.00100001,4279.8,4279.7,3.64385427]
[1757181513863,0.00100001,4279.8,4279.7,4.09695427]
[1757181514050,0.00100001,4279.8,4279.7,3.64385427]
[1757181514379,0.00100001,4279.8,4279.7,2.74371237]
[1757181527200,0.29770001,4279.8,4279.7,2.45341237]
[1757181527358,1.24790001,4279.8,4279.7,2.45341237]
[1757181527560,1.24790001,4279.8,4279.7,0.1168]
[1757181527754,7.16562659,4279.8,4279.6,2.34066677]
[1757181527997,1.66676266,4279.7,4279.6,2.34066697]
[1757181528375,1.96346266,4279.7,4279.6,2.34066697]
[1757181532610,1.2469,4279.7,4279.6,2.34066697]
[1757181538896,1.79800001,4279.8,4279.7,2.33661237]
[1757181539101,5.70000001,4279.8,4279.7,2.63551237]
[1757181540433,1.79800001,4279.8,4279.7,2.63551237]
[1757181540635,5.70000001,4279.8,4279.7,2.64749741]
[1757181540932,5.70000001,4279.8,4279.7,2.63551237]
[1757181542557,3.90300001,4279.8,4279.7,2.63551237]
[1757181543651,3.90300001,4279.8,4279.7,2.33661237]
[1757181545969,3.90300001,4279.8,4279.7,2.63551237]
[1757181547854,3.90300001,4279.8,4279.7,2.33661237]
[1757181551187,3.90300001,4279.8,4279.7,2.64801237]
[1757181552396,3.90300001,4279.8,4279.7,3.69999741]
[1757181552397,0.00100001,4279.8,4279.7,3.69999741]
[1757181552610,0.00100001,4279.8,4279.7,4.30406385]
[1757181552897,0.00100001,4279.8,4279.7,5.00664078]
[1757181553104,0.00100001,4279.8,4279.7,4.99465574]
[1757181554413,0.00100001,4279.8,4279.7,4.50795574]
[1757181554618,0.00100001,4279.8,4279.7,4.51994078]
[1757181555137,0.00100001,4279.8,4279.7,4.99465574]
[1757181556999,0.00100001,4279.8,4279.7,8.89565574]
[1757181561720,0.00100001,4279.8,4279.7,11.77885574]
[1757181562027,0.001,4281.1,4281.0,2.33590282]
[1757181562190,0.001,4281.1,4281.0,6.23690282]
[1757181562390,0.001,4281.1,4281.0,6.54830282]
[1757181562689,0.001,4281.1,4281.0,7.47150282]
[1757181563104,0.001,4281.1,4281.0,7.91970282]
[1757181563322,0.001,4281.1,4281.0,8.94527073]
[1757181563495,0.001,4281.1,4281.0,8.45857073]
[1757181565225,0.001,4281.1,4281.0,11.94527073]
[1757181566201,0.001,4281.1,4281.0,11.45857073]
[1757181567442,0.001,4281.1,4281.0,10.70967073]
[1757181568143,1.2065,4281.1,4281.0,2.78410282]
[1757181571842,1.2065,4281.1,4281.0,2.90010282]
[1757181573671,1e-08,4281.2,4281.1,2.33584826]
[1757181573817,1e-08,4281.2,4281.1,7.46285099]
[1757181574037,0.75730001,4281.2,4281.1,7.48485099]
[1757181574236,1e-08,4281.2,4281.1,7.48485099]
[1757181574581,1e-08,4281.2,4281.1,8.18716969]
[1757181575090,1e-08,4281.2,4281.1,11.98526969]
[1757181575232,1e-08,4281.2,4281.1,12.42176969]
[1757181575574,0.001,4281.6,4281.5,2.33563003]
[1757181575777,0.001,4281.6,4281.5,6.27563003]
[1757181575956,0.001,4281.6,4281.5,2.95265164]
[1757181576551,0.001,4281.6,4281.5,3.65489801]
[1757181579973,0.3023,4281.6,4281.5,3.65489801]
[1757181580180,0.7627,4281.6,4281.5,3.65489801]
[1757181580375,0.001,4281.6,4281.5,3.3474764]
[1757181583687,0.001,4281.6,4281.5,3.4634764]
[1757181585681,0.3023,4281.6,4281.5,7.0888764]
[1757181587269,0.001,4281.6,4281.5,7.0888764]
[1757181587950,0.3023,4281.6,4281.5,7.0888764]
[1757181589592,0.001,4281.6,4281.5,7.0888764]
[1757181592287,0.3023,4281.6,4281.5,7.0888764]
[1757181592772,0.7711,4281.6,4281.5,3.1538764]
[1757181592977,1.2315,4281.6,4281.5,3.0378764]
[1757181593173,1.35465,4281.6,4281.5,3.0378764]
[1757181593381,1.35465,4281.6,4281.5,2.33563003]
[1757181593583,1.35465,4281.6,4281.4,2.33566758]
[1757181593788,0.95839537,4281.5,4281.0,2.33986116]
[1757181593988,0.13838454,4281.4,4281.3,2.33573914]
[1757181594296,1.36888454,4281.4,4281.3,2.33573914]
[1757181594678,1.36888454,4281.4,4281.0,0.004]
[1757181594679,1.36888454,4281.4,4281.1,2.33581374]
[1757181595000,0.43968454,4281.4,4281.2,2.33578383]
[1757181595204,0.43968454,4281.4,4281.3,2.33573914]
[1757181595603,1.36888454,4281.4,4281.3,2.33573914]
[1757181600596,1.36888454,4281.4,4281.1,2.33583643]
[1757181600795,0.79770345,4281.3,4281.0,2.33984914]
[1757181600973,1.25810345,4281.3,4281.0,0.004]
[1757181601173,0.3013,4281.1,4281.0,2.33990282]
[1757181601374,1.2305,4281.1,4281.0,0.004]
[1757181601576,1.2305,4281.1,4281.0,2.33990282]
[1757181602418,5.3564769,4281.1,4281.0,0.004]
[1757181602587,2.33605529,4280.8,4280.5,0.70642888]
[1757181602787,2.13010308,4280.7,4280.5,0.70642888]
[1757181602992,0.51860308,4280.6,4280.5,0.70642888]
[1757181603194,1.44780308,4280.6,4280.5,0.004]
[1757181603389,2.01745998,4280.6,4280.5,0.004]
[1757181603716,5.17478259,4280.6,4280.5,0.004]
[1757181603875,5.14558108,4280.6,4280.5,0.004]
[1757181604088,9.07331567,4280.6,4280.5,0.004]
[1757181604323,2.01719457,4280.6,4280.5,0.004]
[1757181604525,3.929,4280.6,4280.5,2.64977568]
[1757181604724,3.929,4280.6,4280.5,0.004]
[1757181604725,5.1595,4280.6,4280.5,0.004]
[1757181605117,5.2763,4280.6,4280.5,0.004]
[1757181609700,9.0683,4280.6,4280.5,0.004]
[1757181609897,13.00715361,4280.6,4280.5,0.004]
[1757181611604,3.12820362,4280.5,4280.1,0.004]
[1757181611804,0.792,4280.3,4280.1,0.004]
[1757181612020,4.2352,4280.2,4280.1,0.004]
[1757181612345,5.1871,4280.2,4280.1,0.004]
[1757181612547,6.01863324,4280.2,4280.1,0.004]
[1757181614727,8.35497266,4280.2,4280.1,0.004]
[1757181614918,6.01863324,4280.2,4280.1,0.004]
[1757181617630,5.06673324,4280.2,4280.1,0.004]
[1757181617833,3.928,4280.2,4280.1,0.2951]
[1757181618020,3.929,4280.6,4280.1,1.3555]
[1757181618223,3.929,4280.6,4280.5,2.45297568]
[1757181618419,3.929,4280.6,4280.5,3.68767568]
[1757181618731,1.796,4280.7,4280.6,2.3361211]
[1757181619078,5.725,4280.7,4280.6,3.2797211]
[1757181619233,5.725,4280.7,4280.6,3.5708211]
[1757181619433,1.796,4280.7,4280.6,3.5708211]
[1757181619633,5.725,4280.7,4280.6,3.5708211]
[1757181623062,5.725,4280.7,4280.6,2.6272211]
[1757181623230,5.725,4280.7,4280.6,3.1091211]
[1757181623429,5.725,4280.7,4280.6,3.5708211]
[1757181624345,5.726,4280.7,4280.6,3.5708211]
[1757181624740,3.926,4280.7,4280.6,4.29000379]
[1757181624958,0.001,4280.7,4280.6,4.29000379]
[1757181632012,0.001,4280.7,4280.6,3.34640379]
[1757181632178,0.001,4280.7,4280.6,2.7440211]
[1757181632504,0.001,4280.7,4280.6,2.4529211]
[1757181632888,0.001,4280.7,4280.6,2.7440211]
[1757181635383,0.001,4280.7,4280.6,3.6876211]
[1757181635586,0.001,4280.7,4280.6,3.2057211]
[1757181635814,0.001,4280.7,4280.6,3.83015241]
[1757181636686,0.001,4280.7,4280.6,3.36845241]
[1757181637823,0.001,4280.7,4280.6,3.83015241]
[1757181638027,0.001,4280.7,4280.6,4.31205241]
[1757181638724,0.001,4280.7,4280.6,5.01443853]
[1757181641656,0.001,4280.7,4280.6,4.55273853]
[1757181641802,0.001,4280.7,4280.6,8.94323853]
[1757181651486,0.001,4280.7,4280.6,8.46133853]
[1757181652029,0.001,4280.7,4280.6,7.99083853]
[1757181657114,0.001,4280.7,4280.6,8.47503853]
[1757181657314,0.001,4280.7,4280.6,8.94553853]
[1757181657838,0.001,4280.7,4280.6,8.46133853]
[1757181660230,0.001,4280.7,4280.6,7.99083853]
[1757181660471,1.227,4280.7,4280.6,7.69973853]
[1757181661034,1.227,4280.7,4280.6,7.69073853]
[1757181661528,1.227,4280.7,4280.6,7.06630722]